Workbook

Sheet nguon thu Phi QT
A1: Sở Tài chính tỉnh Vĩnh Long
A2: Chương 418
A4: DỰ TOÁN THU CHI NGÂN SÁCH NHÀ NƯỚC NGUỒN THU CHI PHÍ THẨM TRA PHÊ DUYỆT QUYẾT TOÁN NĂM 2025
A5: (Kèm theo Quyết định số /QĐ-STC ngày /8/2025 của Sở Tài chính)
D7: Đơn vị: đồng
A8: Nội dung | B8: Tổng số | C8: Chi tiết theo đơn vị sử dụng
C9: Văn phòng Sở | D9: TT Xúc tiến đầu tư, Hỗ trợ doanh nghiệp và Dịch vụ tài chính
A10: I. Dự toán thu | B10: =B11 -> 4,000,000,000 | C10: =C11 -> 4,000,000,000
A11: - Thu chi phí thẩm tra, phê duyệt quyết toán công trình | B11: =C11+D11 -> 4,000,000,000 | C11: 4,000,000,000
A12: II. Chi từ nguồn thu | B12: =C12+D12 -> 4,000,000,000 | C12: =SUM(C13:C22) -> 4,000,000,000
A13: - Chi hỗ trợ trực tiếp và phối hợp trong công tác thẩm tra, phê duyệt quyết toán công trình (trong và ngoài đơn vị) | B13: =C13+D13 -> 3,880,000,000 | C13: 3,880,000,000
A14: - Công tác phí dự hội nghị, tập huấn, học tập kinh nghiệm liên quan đến công tác thẩm tra, phê duyệt quyết toán công trình | B14: 10,000,000 | C14: 10,000,000
A15: - Văn phòng phẩm, điện, nước, công cụ, dụng cụ | B15: 15,000,000 | C15: 15,000,000
A16: - In ấn, tổ chức hội nghị | B16: 5,000,000 | C16: 5,000,000
A17: - Mua sắm máy tính, máy in, máy scan | B17: 40,000,000 | C17: 40,000,000
A18: - Sửa chữa máy móc thiết bị | B18: 10,000,000 | C18: 10,000,000
A19: - Nước uống hội họp | B19: 10,000,000 | C19: 10,000,000
A20: - Bơm mực máy in, máy photo | B20: 10,000,000 | C20: 10,000,000
A21: - Tiếp khách | B21: 10,000,000 | C21: 10,000,000
A22: - Chi khác | B22: 10,000,000 | C22: 10,000,000
A23: III. Nộp ngân sách nhà nước

Sheet 48-tt
A1: TT Xúc tiến ĐT, Hỗ trợ doanh nghiệp và DVTC | B1: Biểu số 2
A2: Chương 418
A4: DỰ TOÁN THU, CHI NGÂN SÁCH NHÀ NƯỚC NĂM 2025
A5: (Kèm theo Quyết định số /QĐ-STC ngày /8/2025 của Sở Tài chính)
B7: Đơn vị: đồng
A8: Nội dung | B8: Tổng số
A9: I. Thu, chi hoạt động dịch vụ
A10: 1. Dự toán thu | B10: =SUM(B11:B11) -> 305,000,000
A11: - Thu hoạt động dịch vụ | B11: 305,000,000
A12: 2. Chi từ nguồn thu | B12: =SUM(B13:B13) -> 274,500,000
A13: - Hoạt động dịch vụ | B13: 274,500,000
A14: 3. Nộp ngân sách nhà nước | B14: =B15 -> 30,500,000
A15: - Thuế GTGT, TNDN từ thu dịch vụ | B15: =B11-B13 -> 30,500,000
A16: II. Dự toán chi NSNN | B16: =B17+B21+B24+B30+B37 -> 30,571,735,017
A17: 1. Quản lý hành chính (340-341)
A18: 1.1 Kinh phí thực hiện tự chủ
A19: trong đó tiết kiệm 10% cải cách tiền lương
A20: 1.2 Kinh phí không thực hiện tự chủ
A21: 2. Nghiên cứu khoa học (100-103) | B21: =B22+B23 -> 187,797,950
A22: 2.1 Kinh phí nhiệm vụ thường xuyên theo chức năng
A23: 2.2 Kinh phí nhiệm vụ không thường xuyên | B23: 187,797,950
A24: 3. Sự nghiệp giáo dục, đào tạo, dạy nghề | B24: =B25+B26 -> 849,803,400
A25: 3.1 Kinh phí nhiệm vụ thường xuyên
A26: 3.2 Kinh phí nhiệm vụ không thường xuyên | B26: =SUM(B27:B29) -> 849,803,400
A27: - Loại 070 khoản 083 | B27: 177,000,000
A28: - Loại 070 khoản 085 | B28: 524,672,320
A29: - Loại 070 khoản 098 | B29: 148,131,080
A30: 4. Sự nghiệp kinh tế | B30: =B31+B32 -> 24,663,838,536
A31: 4.1 Kinh phí thực hiện nhiệm vụ thường xuyên
A32: 4.2 Kinh phí nhiệm vụ không thường xuyên | B32: =SUM(B33:B36) -> 24,663,838,536
A33: - Loại 280 khoản 338 | B33: 13,572,635,808
A34: - Loại 280 khoản 321 | B34: 8,204,076,933
A35: - Loại 280 khoản 309 | B35: 1,126,762,860
A36: - Loại 280 khoản 332 | B36: 1,760,362,935
A37: 5. Chi từ nguồn cải cách tiền lương | B37: =B38+B39 -> 4,870,295,131
A38: 5.1 Kinh phí nhiệm vụ thường xuyên
A39: 5.2 Kinh phí nhiệm vụ không thường xuyên | B39: =B40+B41 -> 4,870,295,131
A40: - Loại 280 khoản 321 (nguồn 23) | B40: 4,619,857,950
A41: - Loại 280 khoản 338 (nguồn 18) | B41: 250,437,181
A42: 6.Sự nghiệp thông tin truyền thông
A43: 6.1 Kinh phí nhiệm vụ thường xuyên
A44: 6.2 Kinh phí nhiệm vụ không thường xuyên

Sheet 48-vp
A1: Văn phòng Sở Tài chính | B1: Biểu số 2
A2: Chương 418
A4: DỰ TOÁN THU, CHI NGÂN SÁCH NHÀ NƯỚC NĂM 2025
A5: (Kèm theo Quyết định số /QĐ-STC ngày / 8 /2025 của Sở Tài chính)
B7: Đơn vị: đồng
A8: Nội dung | B8: Tổng số
A9: I. Thu, chi ngân sách về phí, lệ phí
A10: 1. Dự toán thu | B10: =SUM(B11:B11) -> 120,000,000
A11: - Thu phí, lệ phí | B11: 120,000,000
A12: 2. Chi từ nguồn thu | B12: =SUM(B13:B13) -> 36,000,000
A13: - Chi phục vụ hoạt động thu phí, lệ phí | B13: 36,000,000
A14: 3. Nộp ngân sách nhà nước | B14: =B15 -> 84,000,000
A15: - Phí, lệ phí nộp NSNN | B15: 84,000,000
A16: II. Dự toán chi NSNN | B16: =B17+B20+B23+B32+B35+B40+B29+B43 -> 45,409,334,378
A17: 1. Quản lý hành chính (340-341) | B17: =B18+B19 -> 35,596,051,375
A18: 1.1 Kinh phí thực hiện tự chủ | B18: 29,474,449,524
A19: 1.2 Kinh phí không thực hiện tự chủ | B19: 6,121,601,851
A20: 2. Chi sự nghiệp khoa học và công nghệ (100-103) | B20: =B21+B22 -> 110,000,000
A21: 2.1 Kinh phí nhiệm vụ thường xuyên theo chức năng
A22: 2.2 Kinh phí nhiệm vụ không thường xuyên | B22: 110,000,000
A23: 3. Sự nghiệp giáo dục, đào tạo, dạy nghề | B23: =B24+B25 -> 1,593,550,000
A24: 3.1 Kinh phí nhiệm vụ thường xuyên
A25: 3.2 Kinh phí nhiệm vụ không thường xuyên | B25: =SUM(B26:B28) -> 1,593,550,000
A26: - Loại 070 khoản 083 | B26: 300,000,000
A27: - Loại 070 khoản 082 | B27: 48,750,000
A28: - Loại 070 khoản 085 | B28: 1,244,800,000
A29: 4. Sự nghiệp kinh tế (280-338) | B29: =B30+B31 -> 3,659,559,725
A30: 4.1 Kinh phí nhiệm vụ thường xuyên
A31: 4.2 Kinh phí nhiệm vụ không thường xuyên | B31: =1276074725+2383485000 -> 3,659,559,725
A32: 5. Chi thường xuyên khác (400-428) | B32: =B33+B34 -> 3,220,253
A33: 5.1 Kinh phí nhiệm vụ thường xuyên
A34: 5.2 Kinh phí nhiệm vụ không thường xuyên | B34: 3,220,253
A35: 6. Chi từ nguồn cải cách tiền lương | B35: =B36+B37 -> 4,244,953,025
A36: 6.1 Kinh phí nhiệm vụ thường xuyên
A37: 6.2 Kinh phí nhiệm vụ không thường xuyên | B37: =B38+B39 -> 4,244,953,025
A38: - Loại 340 khoản 341 (nguồn 18) | B38: 1,452,733,200
A39: - Loại 340 khoản 341 (nguồn 23) | B39: 2,792,219,825
A40: 7. Chi bổ sung có mục tiêu từ ngân sách Trung ương (340-341) | B40: =B41+B42 -> 192,000,000
A41: 7.1 Kinh phí nhiệm vụ thường xuyên
A42: 7.2 Kinh phí nhiệm vụ không thường xuyên (mã CTMT 00959) | B42: 192,000,000
A43: 8. Chương trình MTQG XD nông thôn mới (340-341) | B43: =B44+B45 -> 10,000,000
A44: 8.1 Kinh phí nhiệm vụ thường xuyên
A45: 8.2 Kinh phí nhiệm vụ không thường xuyên (mã CTMT 00959) | B45: 10,000,000

Sheet 49
A1: Sở Tài chính tỉnh Vĩnh Long | D1: Biểu số 1
A2: Chương 418
A4: DỰ TOÁN THU, CHI NGÂN SÁCH ĐƯỢC GIAO VÀ PHÂN BỔ CHO CÁC ĐƠN VỊ TRỰC THUỘC NĂM 2025
A5: (Kèm theo Quyết định số /QĐ-STC ngày /8/2025 của Sở Tài chính)
D7: Đơn vị: đồng
A8: Nội dung | B8: Tổng số | C8: Chi tiết theo đơn vị sử dụng
C9: Văn phòng Sở | D9: TT Xúc tiến đầu tư, Hỗ trợ doanh nghiệp và Dịch vụ tài chính
A10: I. Thu, chi ngân sách về phí, lệ phí
A11: 1. Dự toán thu | B11: =C11+D11 -> 425,000,000 | C11: =SUM(C12:C13) -> 120,000,000 | D11: =SUM(D12:D13) -> 305,000,000
A12: - Thu hoạt động dịch vụ | B12: =C12+D12 -> 305,000,000 | D12: 305,000,000
A13: - Thu phí, lệ phí | B13: 120,000,000 | C13: 120,000,000
A14: 2. Chi từ nguồn thu | B14: =C14+D14 -> 310,500,000 | C14: =SUM(C15:C16) -> 36,000,000 | D14: =SUM(D15:D16) -> 274,500,000
A15: - Hoạt động dịch vụ | B15: =C15+D15 -> 274,500,000 | D15: 274,500,000
A16: - Chi phục vụ hoạt động thu phí, lệ phí | B16: 36,000,000 | C16: 36,000,000
A17: 3. Nộp ngân sách nhà nước | B17: =SUM(B18:B19) -> 114,500,000 | C17: =SUM(C18:C19) -> 84,000,000 | D17: =SUM(D18:D19) -> 30,500,000
A18: - Thuế GTGT, TNDN từ thu dịch vụ | B18: =C18+D18 -> 30,500,000 | D18: =D12-D15 -> 30,500,000
A19: - Phí, lệ phí | B19: 84,000,000 | C19: 84,000,000
A20: II. Dự toán chi NSNN | B20: 75,981,069,395 | C20: =C21+C24+C27+C34+C41+C44+C51+C54 -> 45,409,334,378 | D20: =D21+D24+D27+D34+D41+D44+D51+D54 -> 30,571,735,017
A21: 1. Quản lý hành chính (340-341) | B21: =C21+D21 -> 35,596,051,375 | C21: =C22+C23 -> 35,596,051,375
A22: 1.1 Kinh phí thực hiện tự chủ | B22: 29,474,449,524 | C22: 29,474,449,524
A23: 1.2 Kinh phí không thực hiện tự chủ | B23: 6,121,601,851 | C23: 6,121,601,851
A24: 2. Chi sự nghiệp khoa học và công nghệ (100-103) | B24: 297,797,950 | C24: =C25+C26 -> 110,000,000 | D24: =D25+D26 -> 187,797,950
A25: 2.1 Kinh phí nhiệm vụ thường xuyên theo chức năng
A26: 2.2 Kinh phí nhiệm vụ không thường xuyên | B26: =C26+D26 -> 297,797,950 | C26: 110,000,000 | D26: 187,797,950
A27: 3. Sự nghiệp giáo dục, đào tạo, dạy nghề | B27: =C27+D27 -> 2,443,353,400 | C27: =C28+C29 -> 1,593,550,000 | D27: =D28+D29 -> 849,803,400
A28: 3.1 Kinh phí nhiệm vụ thường xuyên
A29: 3.2 Kinh phí nhiệm vụ không thường xuyên | B29: =SUM(B30:B33) -> 2,443,353,400 | C29: =SUM(C30:C33) -> 1,593,550,000 | D29: 849,803,400
A30: - Loại 070 khoản 082 | B30: =C30+D30 -> 48,750,000 | C30: 48,750,000
A31: - Loại 070 khoản 083 | B31: 477,000,000 | C31: 300,000,000 | D31: 177,000,000
A32: - Loại 070 khoản 085 | B32: 1,769,472,320 | C32: 1,244,800,000 | D32: 524,672,320
A33: - Loại 070 khoản 098 | B33: 148,131,080 | D33: 148,131,080
A34: 4. Sự nghiệp kinh tế | B34: =B35+B36 -> 28,323,398,261 | C34: =C35+C36 -> 3,659,559,725 | D34: =D35+D36 -> 24,663,838,536
A35: 4.1 Kinh phí nhiệm vụ thường xuyên
A36: 4.2 Kinh phí nhiệm vụ không thường xuyên | B36: =SUM(B37:B40) -> 28,323,398,261 | C36: =SUM(C37:C40) -> 3,659,559,725 | D36: 24,663,838,536
A37: - Loại 280 khoản 338 | B37: =C37+D37 -> 17,232,195,533 | C37: =1276074725+2383485000 -> 3,659,559,725 | D37: 13,572,635,808
A38: - Loại 280 khoản 321 | B38: 8,204,076,933 | D38: 8,204,076,933
A39: - Loại 280 khoản 309 | B39: 1,126,762,860 | D39: 1,126,762,860
A40: - Loại 280 khoản 332 | B40: 1,760,362,935 | D40: 1,760,362,935
A41: 5. Chi thường xuyên khác (400-428) | B41: =C41+D41 -> 3,220,253 | C41: =C42+C43 -> 3,220,253
A42: 5.1 Kinh phí nhiệm vụ thường xuyên
A43: 5.2 Kinh phí nhiệm vụ không thường xuyên | B43: =C43+D43 -> 3,220,253 | C43: 3,220,253
A44: 6. Chi từ nguồn cải cách tiền lương | B44: =B45+B46 -> 9,115,248,156 | C44: =C45+C46 -> 4,244,953,025 | D44: 4,870,295,131
A45: 6.1 Kinh phí nhiệm vụ thường xuyên
A46: 6.2 Kinh phí nhiệm vụ không thường xuyên | B46: =SUM(B47:B50) -> 9,115,248,156 | C46: =SUM(C47:C50) -> 4,244,953,025 | D46: 4,870,295,131
A47: - Loại 280 khoản 321 (nguồn 23) | B47: =C47+D47 -> 4,619,857,950 | D47: 4,619,857,950
A48: - Loại 280 khoản 338 (nguồn 18) | B48: =C48+D48 -> 250,437,181 | D48: 250,437,181
A49: - Loại 340 khoản 341 (nguồn 18) | B49: 1,452,733,200 | C49: 1,452,733,200
A50: - Loại 340 khoản 341 (nguồn 23) | B50: 2,792,219,825 | C50: 2,792,219,825
A51: 7. Chi bổ sung có mục tiêu từ ngân sách Trung ương (340-341) | B51: 192,000,000 | C51: =C52+C53 -> 192,000,000
A52: 7.1 Kinh phí nhiệm vụ thường xuyên
A53: 7.2 Kinh phí nhiệm vụ không thường xuyên (mã CTMT 00959) | B53: 192,000,000 | C53: 192,000,000
A54: 8. Chương trình MTQG XD nông thôn mới (340-341) | B54: =C54+D54 -> 10,000,000 | C54: =C55+C56 -> 10,000,000
A55: 8.1 Kinh phí nhiệm vụ thường xuyên
A56: 8.2 Kinh phí nhiệm vụ không thường xuyên (mã CTMT 00959) | B56: =C56+D56 -> 10,000,000 | C56: 10,000,000
A57: Mã số đơn vị sử dụng NSNN | C57: 1147359 | D57: 1161603
A58: Mã số Kho bạc nhà nước nơi giao dịch | C58: 0711 | D58: 0711
